bitfinex-derivatives/quotes_SOLF0:USTF0_20250730
["timestamp","ask_amount","ask_price","bid_price","bid_amount"]
[1753905111945,3.31,176.0,175.9,112.66]
[1753905112149,8.9949,175.91,175.9,112.66]
[1753905112347,7.97317644,176.02,175.9,112.66]
[1753905112552,3.31,176.0,175.9,112.66]
[1753905112755,3.31,175.98,175.9,112.66]
[1753905112951,3.31,175.96,175.9,112.66]
[1753905113154,5.6849,175.91,175.9,112.66]
[1753905113454,3.31,175.91,175.9,112.66]
[1753905113754,3.31,175.93,175.9,112.66]
[1753905114250,5.6846,175.92,175.9,112.66]
[1753905114460,8.9946,175.92,175.9,112.66]
[1753905115258,10.12023895,176.0,175.86,392.28023895]
[1753905115454,4.66317644,175.98,175.87,112.38]
[1753905115651,7.88984823,175.97,175.87,112.38]
[1753905115957,4.57984823,175.96,175.87,112.38]
[1753905116154,3.31,175.94,175.87,112.38]
[1753905116356,4.57984823,175.93,175.89,10.12023895]
[1753905116544,7.88984823,175.92,175.87,122.50023895]
[1753905116750,10.26494823,175.91,175.87,122.50023895]
[1753905116951,3.31,175.91,175.87,122.50023895]
[1753905117258,7.90684465,175.9,175.87,122.50023895]
[1753905117460,4.59684465,175.89,175.87,122.50023895]
[1753905117754,3.31,175.93,175.87,122.50023895]
[1753905117951,5.6851,175.91,175.87,122.50023895]
[1753905118258,3.31,175.9,175.87,122.50023895]
[1753905118452,8.9942,175.93,175.87,122.50023895]
[1753905118653,3.31,175.93,175.87,122.50023895]
[1753905119553,5.6846,175.92,175.87,122.50023895]
[1753905119751,3.31,175.93,175.87,122.50023895]
[1753905120155,5.6846,175.92,175.87,122.50023895]
[1753905120355,3.15,175.98,175.87,122.50023895]
[1753905120556,4.27061103,175.97,175.87,112.38]
[1753905120757,14.39084998,175.96,175.87,112.38]
[1753905120953,4.27061103,175.95,175.81,15.80803895]
[1753905121158,4.27061103,175.94,175.84,10.12023895]
[1753905121358,4.27061103,175.93,175.84,10.12023895]
[1753905121554,4.27061103,175.92,175.84,10.12023895]
[1753905121760,7.42061103,175.91,175.84,10.12023895]
[1753905122053,3.15,175.98,175.85,5.6866]
[1753905122361,5.6847,175.92,175.86,112.22]
[1753905122560,5.6847,175.92,175.86,117.9063]
[1753905122761,3.15,175.9,175.86,117.9063]
[1753905123062,3.15,175.89,175.86,112.22]
[1753905123259,3.15,175.88,175.86,112.22]
[1753905123452,3.15,175.87,175.86,112.22]
[1753905123652,3.15,175.98,175.86,112.22]
[1753905123857,3.15,175.96,175.86,112.22]
[1753905124059,4.27162232,175.95,175.86,112.22]
[1753905124255,7.42162232,175.94,175.86,112.22]
[1753905124463,5.6846,175.92,175.86,117.9064]
[1753905124763,3.15,175.92,175.86,112.22]
[1753905125158,4.27180314,175.91,175.86,112.22]
[1753905125353,10.12023895,175.96,175.86,112.22]
[1753905125354,3.15,175.9,175.86,112.22]
[1753905126163,5.686,175.88,175.86,112.22]
[1753905126362,3.15,175.87,175.86,112.22]
[1753905127563,3.15,175.87,175.8,6.63936062]
[1753905127753,3.15,175.85,175.77,6.63936062]
[1753905127954,3.15,175.85,175.78,111.92]
[1753905128560,3.15,175.85,175.76,382.0]
[1753905128764,3.15,175.84,175.75,118.51936062]
[1753905129364,3.15,175.84,175.75,111.88]
[1753905129562,9.78936062,175.84,175.75,111.88]
[1753905129755,9.78936062,175.84,175.68,111.86]
[1753905129756,6.63936062,175.78,175.68,111.86]
[1753905130064,5.691,175.73,175.68,111.86]
[1753905130254,6.63936062,175.79,175.68,111.86]
[1753905130455,6.63936062,175.8,175.68,111.86]
[1753905130759,4.27420483,175.79,175.68,111.86]
[1753905130957,6.63936062,175.8,175.68,111.86]
[1753905131155,5.6911,175.72,175.68,111.86]
[1753905131361,6.63936062,175.8,175.68,111.86]
[1753905131565,4.27486858,175.79,175.68,111.86]
[1753905131769,6.63936062,175.78,175.56,388.81936062]
[1753905132060,6.63936062,175.75,175.65,6.63936062]
[1753905132266,6.63936062,175.72,175.63,6.63936062]
[1753905132471,11.3752,175.83,175.63,119.19936062]
[1753905132768,10.11080356,175.76,175.63,118.2538]
[1753905133065,10.11080356,175.79,175.65,10.11080356]
[1753905133263,5.6916,175.71,175.65,15.80410356]
[1753905133466,10.11080356,175.76,175.65,10.11080356]
[1753905133770,11.3752,175.83,175.56,382.18]
[1753905133771,10.11080356,175.73,175.56,382.18]
[1753905133960,10.11080356,175.73,175.59,10.11080356]
[1753905134164,10.11080356,175.73,175.57,112.52]
[1753905134165,3.15,175.72,175.58,10.11080356]
[1753905134463,3.15,175.72,175.6,5.6948]
[1753905134869,5.6929,175.67,175.61,5.6945]
[1753905135064,3.15,175.66,175.58,10.11080356]
[1753905135263,3.15,175.66,175.57,112.52]
[1753905135264,3.15,175.66,175.59,10.11080356]
[1753905135568,3.15,175.72,175.65,10.11080356]
[1753905135768,3.15,175.72,175.66,112.78]
[1753905136170,3.15,175.69,175.66,112.78]
[1753905136464,3.15,175.72,175.63,112.78]
[1753905136665,3.15,175.67,175.63,112.78]
[1753905136866,3.15,175.75,175.63,112.78]
[1753905137062,3.15,175.72,175.63,112.78]
[1753905137766,8.8435,175.65,175.63,112.78]
[1753905138170,5.6936,175.64,175.63,112.78]
[1753905138368,8.8436,175.64,175.63,112.78]
[1753905139275,3.15,175.64,175.63,112.78]
[1753905140074,8.8436,175.64,175.63,112.78]
[1753905140371,3.15,175.66,175.63,112.78]
[1753905140780,3.15,175.65,175.63,112.78]
[1753905141375,3.15,175.72,175.59,112.68]
[1753905141575,3.15,175.69,175.59,112.68]
[1753905142081,8.8435,175.65,175.59,118.3752]
[1753905142279,3.15,175.65,175.59,112.68]
[1753905142680,11.3786,175.78,175.59,112.68]
[1753905142681,3.15,175.63,175.59,112.68]
[1753905143278,3.15,175.71,175.59,112.68]
[1753905143673,10.11080356,175.72,175.59,112.68]
[1753905143880,3.15,175.71,175.61,10.11080356]
[1753905144076,3.15,175.71,175.64,10.11080356]
[1753905144277,3.15,175.71,175.67,10.11080356]
[1753905144885,3.15,175.73,175.68,5.6921]
[1753905145179,3.15,175.73,175.67,10.11080356]
[1753905145377,8.8409,175.73,175.68,10.11080356]
[1753905145783,3.15,175.72,175.68,10.11080356]
[1753905145982,3.15,175.72,175.68,15.80310356]
[1753905146179,3.15,175.72,175.68,10.11080356]
[1753905146581,3.15,175.79,175.71,10.11080356]
[1753905146782,3.15,175.79,175.71,122.89080356]
[1753905146981,5.6901,175.75,175.71,122.89080356]
[1753905147288,3.15,175.79,175.71,122.89080356]
[1753905147481,3.15,175.79,175.73,5.6906]
[1753905147482,5.6893,175.78,175.73,5.6906]
[1753905147678,3.15,175.77,175.74,10.11080356]
[1753905148075,3.15,175.75,175.71,122.89080356]
[1753905148280,3.15,175.77,175.71,122.89080356]
[1753905148480,10.11080356,175.87,175.74,10.11080356]
[1753905148676,3.15,175.8,175.74,10.11080356]
[1753905149087,8.8385,175.8,175.74,15.80110356]
[1753905149287,3.15,175.8,175.74,10.11080356]
[1753905149585,3.15,175.8,175.77,10.11080356]
[1753905149783,3.28,175.82,175.77,122.61080356]
[1753905150086,3.28,175.84,175.77,122.61080356]
[1753905150281,3.28,175.84,175.8,10.11080356]
[1753905150486,3.28,175.83,175.8,10.11080356]
[1753905151088,3.28,175.81,175.77,112.5]
[1753905151285,3.28,175.89,175.77,112.5]
[1753905152082,10.11080356,175.9,175.77,112.5]
[1753905152288,3.28,175.85,175.77,112.5]
[1753905152784,8.9683,175.81,175.78,6.64306972]
[1753905153190,5.6881,175.82,175.78,6.64306972]
[1753905153493,3.28,175.88,175.8,6.64306972]
[1753905153684,3.28,175.88,175.83,6.64306972]
[1753905153885,8.9671,175.84,175.83,6.64306972]
[1753905154184,11.3672,175.95,175.81,112.2]
[1753905154185,3.28,175.83,175.81,112.2]
[1753905154385,3.28,175.87,175.81,112.2]
[1753905154888,3.28,175.87,175.68,382.46]
[1753905154889,6.64306972,175.86,175.68,382.46]
[1753905155084,6.64306972,175.86,175.77,6.64306972]
[1753905155085,3.28,175.85,175.77,6.64306972]
[1753905155290,3.28,175.85,175.77,118.84306972]
[1753905155487,8.9691,175.78,175.77,112.2]
[1753905155787,6.64306972,175.82,175.74,112.18]
[1753905155983,3.28,175.81,175.74,112.18]
[1753905156390,8.97,175.75,175.74,112.18]
[1753905156584,8.97,175.75,175.72,112.08]
[1753905156585,3.28,175.75,175.72,112.08]
[1753905156786,3.28,175.75,175.7,112.08]
[1753905156990,5.6908,175.73,175.7,112.08]
[1753905157293,3.28,175.73,175.7,112.08]
[1753905157488,3.28,175.79,175.7,112.08]
[1753905157688,3.28,175.79,175.7,118.72306972]
[1753905158591,3.28,175.79,175.7,112.08]
[1753905158790,3.28,175.79,175.72,6.64306972]
[1753905159296,3.28,175.79,175.74,6.64306972]
[1753905159487,3.28,175.78,175.75,111.9]
[1753905159794,5.6897,175.76,175.75,111.9]
[1753905159990,8.9697,175.76,175.75,111.9]
[1753905160296,6.64306972,175.85,175.75,111.9]
[1753905160484,3.28,175.8,175.76,6.64306972]
[1753905160691,3.28,175.84,175.76,6.64306972]
[1753905160892,3.28,175.81,175.76,6.64306972]
[1753905161095,3.28,175.8,175.76,6.64306972]
[1753905161795,3.28,175.8,175.78,6.64306972]
[1753905163591,3.28,175.84,175.79,111.76]
[1753905163899,3.28,175.84,175.82,6.64306972]
[1753905164095,3.28,175.89,175.83,111.76]
[1753905164296,3.28,175.88,175.85,6.64306972]
[1753905165189,5.6849,175.91,175.85,6.64306972]
[1753905165394,3.28,175.95,175.89,6.64306972]
[1753905165594,5.6833,175.96,175.91,6.64306972]
[1753905165897,111.6,176.0,175.91,6.64306972]
[1753905166093,5.6831,175.97,175.91,6.64306972]
[1753905166294,3.28,175.95,175.91,6.64306972]
[1753905166494,3.28,175.94,175.91,12.32766972]
[1753905166894,3.28,175.94,175.91,5.6846]
[1753905167392,3.28,175.94,175.92,5.6844]
[1753905168300,3.28,175.94,175.91,5.6847]
[1753905168691,3.28,175.94,175.9,111.56]
[1753905168892,3.28,175.94,175.91,5.6848]
[1753905169297,3.28,175.94,175.9,111.56]
[1753905169492,3.28,175.94,175.92,5.6844]
[1753905169697,3.28,175.94,175.9,111.56]
[1753905169899,3.28,175.94,175.92,5.6843]
[1753905170698,3.28,175.94,175.93,5.6842]
[1753905171197,10.07946522,176.02,175.9,111.56]
[1753905171402,3.28,176.01,175.92,10.07946522]
[1753905171596,3.28,176.0,175.92,10.07946522]
[1753905171900,3.28,175.99,175.8,520.28768601]
[1753905172098,3.28,175.99,175.81,111.34]
[1753905172299,3.28,175.99,175.91,5.6846]
[1753905172499,3.28,175.99,175.92,111.34]
[1753905173396,3.28,175.96,175.92,111.34]
[1753905174700,3.28,175.94,175.92,111.34]
[1753905174901,3.28,175.93,175.92,111.34]
[1753905176908,3.28,176.0,175.92,111.34]
[1753905177408,5.6842,175.93,175.92,111.34]
[1753905177599,8.9642,175.93,175.92,111.34]
[1753905178000,8.9642,175.93,175.85,10.07946522]
[1753905178001,5.6853,175.9,175.85,10.07946522]
[1753905178200,3.28,175.93,175.86,111.12]
[1753905178612,5.6852,175.9,175.86,111.12]
[1753905178807,3.1,175.89,175.86,111.12]
[1753905179007,3.1,175.94,175.83,5.6873]
[1753905179207,3.1,175.94,175.82,10.07946522]
[1753905179208,3.1,175.9,175.84,111.06]
[1753905179704,8.7854,175.9,175.84,111.06]
[1753905180210,3.1,175.9,175.84,111.06]
[1753905180410,3.1,175.9,175.85,10.07946522]
[1753905180913,3.1,175.89,175.85,15.76596522]
[1753905181113,3.1,175.91,175.85,10.07946522]
[1753905182413,10.07946522,176.0,175.85,10.07946522]
[1753905182613,3.1,175.99,175.85,10.07946522]
[1753905182809,3.1,175.99,175.87,5.6861]
[1753905183411,3.1,175.91,175.84,111.06]
[1753905183613,3.1,175.91,175.8,493.58]
[1753905183817,11.3658,175.98,175.8,493.58]
[1753905183818,3.1,175.85,175.8,493.58]
[1753905184015,3.1,175.85,175.77,5.6891]
[1753905184214,3.1,175.85,175.78,111.62]
[1753905184410,5.6872,175.84,175.78,111.62]
[1753905184904,5.6878,175.82,175.78,121.69946522]
[1753905185105,3.1,175.81,175.78,121.69946522]
[1753905185414,3.1,175.84,175.78,121.69946522]
[1753905186014,8.7873,175.84,175.78,121.69946522]
[1753905186310,3.1,175.84,175.78,121.69946522]
[1753905186520,3.1,175.82,175.79,111.56]
[1753905186713,3.1,175.81,175.79,111.56]
[1753905187009,3.1,175.8,175.79,111.56]
[1753905187204,3.1,175.8,175.77,6.64349078]
[1753905187205,3.1,175.8,175.72,6.64349078]
[1753905187411,3.1,175.8,175.75,8.9599]
[1753905187715,3.1,175.87,175.79,3.27]
[1753905188018,3.1,175.85,175.78,111.5]
[1753905188916,3.1,175.79,175.78,111.5]
[1753905189708,3.1,175.87,175.79,3.27]
[1753905190024,3.1,175.79,175.78,111.5]
[1753905191314,3.1,175.8,175.78,114.77]
[1753905191516,3.1,175.82,175.78,114.77]
[1753905191719,5.6875,175.83,175.78,121.41349078]
[1753905191908,3.1,175.82,175.79,3.27]
[1753905192313,3.1,175.81,175.79,3.27]
[1753905192513,11.3717,175.88,175.68,382.04]
[1753905192715,11.3717,175.88,175.69,114.75]
[1753905192716,3.1,175.8,175.69,114.75]
[1753905192918,3.1,175.74,175.71,3.27]
[1753905193113,3.1,175.72,175.7,6.64349078]
[1753905193314,3.1,175.71,175.69,111.48]
[1753905193524,3.1,175.71,175.69,114.75]
[1753905193715,6.64349078,175.77,175.69,111.48]
[1753905193920,3.1,175.7,175.69,111.48]
[1753905194117,3.1,175.72,175.69,111.48]
[1753905194320,3.1,175.72,175.7,3.27]
[1753905194524,3.1,175.78,175.7,3.27]
[1753905194824,3.1,175.78,175.7,9.91349078]
[1753905195215,3.1,175.74,175.71,3.27]
[1753905195414,3.1,175.73,175.7,9.91349078]
[1753905195614,6.64349078,175.8,175.71,3.27]
[1753905195815,3.1,175.79,175.71,3.27]
[1753905196025,3.1,175.79,175.72,6.64349078]
[1753905196222,8.789,175.79,175.73,114.75]
[1753905196522,3.1,175.78,175.74,6.64349078]
[1753905196825,3.1,175.83,175.74,6.64349078]
[1753905197027,3.1,175.83,175.73,121.39349078]
[1753905197223,3.1,175.83,175.73,111.48]
[1753905197427,3.1,175.79,175.73,111.48]
[1753905197720,3.1,175.77,175.7,111.42]
[1753905198519,3.1,175.72,175.7,111.42]
[1753905198717,3.1,175.77,175.7,111.42]
[1753905198924,3.1,175.77,175.71,3.27]
[1753905199128,6.64349078,175.8,175.71,6.64349078]
[1753905199322,3.1,175.79,175.72,3.27]
[1753905199623,5.6898,175.76,175.72,3.27]
[1753905199928,3.1,175.72,175.7,111.42]
[1753905200119,8.7913,175.71,175.7,111.42]
[1753905200325,3.1,175.74,175.71,3.27]
[1753905200526,3.1,175.79,175.71,3.27]
[1753905201022,3.1,175.79,175.7,111.42]
[1753905201326,6.64349078,175.8,175.7,111.42]
[1753905201327,5.6908,175.73,175.7,111.42]
[1753905201524,3.1,175.74,175.7,111.42]
[1753905201729,3.1,175.73,175.7,114.69]
[1753905202522,6.64349078,175.79,175.71,3.27]
[1753905202725,3.1,175.78,175.71,3.27]
[1753905202920,8.7904,175.74,175.71,3.27]
[1753905203123,3.1,175.74,175.71,3.27]
[1753905203323,3.1,175.73,175.71,3.27]
[1753905204122,3.1,175.77,175.71,3.27]
[1753905204325,5.691,175.73,175.7,111.42]
[1753905204529,3.1,175.73,175.7,111.42]
[1753905204725,3.1,175.8,175.72,3.27]
[1753905204925,3.1,175.83,175.74,3.27]
[1753905205226,3.1,175.83,175.75,111.34]
[1753905205731,3.1,175.83,175.76,3.27]
[1753905206027,8.7881,175.81,175.78,3.27]
[1753905206326,3.1,175.87,175.8,3.27]
[1753905206532,5.6868,175.85,175.82,3.27]
[1753905206730,5.6868,175.85,175.83,3.27]
[1753905207030,3.1,175.86,175.83,3.27]
[1753905207231,3.1,175.91,175.83,3.27]
[1753905208530,3.1,175.91,175.84,3.27]
[1753905208725,3.1,175.91,175.85,121.08349078]
[1753905208926,5.6857,175.89,175.85,121.08349078]
[1753905209126,8.9357,175.89,175.86,3.08]
[1753905209328,3.25,175.95,175.87,3.08]
[1753905209632,3.25,175.95,175.85,118.00349078]
[1753905209633,5.6857,175.89,175.88,3.08]
[1753905210135,5.6857,175.89,175.86,3.08]
[1753905210330,3.25,175.9,175.88,3.08]
[1753905211224,5.6855,175.89,175.88,3.08]
[1753905211433,3.25,175.96,175.86,6.64349078]
[1753905211827,5.6861,175.87,175.86,6.64349078]
[1753905212028,5.6861,175.87,175.86,9.72349078]
[1753905212429,5.6861,175.87,175.86,3.08]
[1753905212925,3.25,175.88,175.85,111.36]
[1753905213134,3.25,175.88,175.85,121.08349078]
[1753905213333,5.6864,175.86,175.85,121.08349078]
[1753905214438,5.6862,175.87,175.86,3.08]
[1753905214638,6.64349078,175.95,175.85,114.44]
[1753905214832,3.25,175.94,175.85,114.44]
[1753905215138,3.25,175.94,175.85,121.08349078]
[1753905215536,5.6864,175.87,175.85,121.08349078]
[1753905216036,3.25,175.88,175.85,121.08349078]
[1753905216231,3.25,175.87,175.85,121.08349078]
[1753905216439,3.25,175.94,175.85,121.08349078]
[1753905216739,3.25,175.94,175.87,6.64349078]
[1753905217037,3.25,175.94,175.88,3.08]
[1753905217835,5.6854,175.9,175.88,3.08]
[1753905218035,3.25,175.9,175.88,3.08]
[1753905218237,8.9354,175.9,175.88,3.08]
[1753905218543,6.64349078,175.97,175.89,3.08]
[1753905218832,3.25,175.9,175.88,3.08]
[1753905219135,3.25,175.96,175.88,3.08]
[1753905219334,3.25,175.96,175.89,9.72349078]
[1753905219535,3.25,175.98,175.9,3.08]
[1753905219731,3.25,175.98,175.92,3.08]
[1753905219934,11.362,176.03,175.92,6.64349078]
[1753905220131,3.25,175.95,175.92,3.08]
[1753905220337,6.64349078,176.01,175.91,6.64349078]
[1753905220534,5.684,175.94,175.91,6.64349078]
[1753905220732,3.25,175.96,175.94,3.08]
[1753905221236,5.6838,175.95,175.94,3.08]
[1753905221829,3.25,175.97,175.91,9.72349078]
[1753905222234,3.25,175.97,175.94,3.08]
[1753905222429,18.00549078,176.03,175.93,6.64349078]
[1753905222633,18.00549078,176.03,175.91,9.72349078]
[1753905222634,3.25,176.01,175.91,9.72349078]
[1753905223041,5.684,175.94,175.91,9.72349078]
[1753905223240,3.25,175.94,175.92,3.08]
[1753905223438,3.25,175.96,175.92,3.08]
[1753905223641,3.25,175.95,175.93,3.08]
[1753905223841,3.25,176.01,175.93,9.72349078]
[1753905224439,6.64349078,176.07,175.97,6.64349078]
[1753905224642,3.25,176.0,175.98,3.08]
[1753905224940,3.25,176.06,176.0,3.08]
[1753905225139,3.25,176.06,176.02,6.64349078]
[1753905225333,6.64349078,176.12,176.02,9.72349078]
[1753905225543,4.29961952,176.11,176.02,6.64349078]
[1753905225735,3.25,176.11,176.02,6.64349078]
[1753905226038,3.25,176.03,176.0,3.08]
[1753905226239,3.25,176.02,176.0,6.64349078]
[1753905226541,8.9302,176.06,176.0,12.32529078]
[1753905226737,8.9302,176.06,176.03,9.72349078]
[1753905227132,3.25,176.05,176.0,3.08]
[1753905227342,3.25,176.11,176.02,6.64349078]
[1753905228242,5.6808,176.04,176.02,9.72349078]
[1753905228632,8.9308,176.04,176.02,9.72349078]
[1753905228943,5.6809,176.03,176.02,9.72349078]
[1753905229245,5.6809,176.03,176.02,3.08]
[1753905229433,6.64349078,176.12,176.02,3.08]
[1753905229639,3.25,176.11,176.01,3.08]
[1753905229942,3.25,176.07,176.01,3.08]
[1753905230337,3.25,176.08,176.05,3.08]
[1753905230532,3.25,176.08,176.06,3.08]
[1753905230735,8.9296,176.08,176.06,3.08]
[1753905231038,6.64349078,176.14,176.04,6.64349078]
[1753905231339,3.25,176.07,176.05,3.08]
[1753905231536,3.25,176.06,176.04,6.64349078]
[1753905231739,3.25,176.06,176.04,9.72349078]
[1753905231939,5.6798,176.07,176.05,3.08]
[1753905232138,3.25,176.08,176.06,3.08]
[1753905232342,3.25,176.13,176.06,3.08]
[1753905232540,3.25,176.13,176.06,9.72349078]
[1753905233041,3.25,176.13,176.07,3.08]
[1753905233642,8.929,176.1,176.07,3.08]
[1753905233838,8.929,176.1,176.08,3.08]
[1753905234045,4.23952387,176.17,176.08,6.64349078]
[1753905234239,4.23952387,176.17,176.1,3.08]
[1753905234543,3.25,176.12,176.1,3.08]
[1753905234747,3.25,176.15,176.11,3.08]
[1753905234938,3.25,176.15,176.13,9.72349078]
[1753905235141,4.23952387,176.17,176.13,6.64349078]
[1753905235341,4.23952387,176.17,176.14,6.64349078]
[1753905235537,4.23952387,176.17,176.15,3.08]
[1753905235744,4.23952387,176.17,176.16,3.08]
[1753905236747,4.23952387,176.17,176.15,3.08]
[1753905237252,9.91622387,176.17,176.15,3.08]
[1753905237843,3.25,176.16,176.09,3.08]
[1753905238040,3.25,176.14,176.09,113.64]
[1753905238244,8.9277,176.14,176.1,3.08]
[1753905238446,3.25,176.14,176.09,110.56]
[1753905238648,3.25,176.14,176.12,3.08]
[1753905238848,4.23952387,176.17,176.13,3.04]
[1753905239349,3.28,176.15,176.11,3.04]
[1753905239551,3.28,176.15,176.12,3.04]
[1753905240039,3.28,176.15,176.11,3.04]
[1753905240244,3.28,176.12,176.1,110.56]
[1753905240440,10.88301465,176.17,176.1,110.56]
[1753905240652,3.28,176.16,176.1,113.6]
[1753905240949,5.678,176.13,176.11,3.04]
[1753905241341,5.6775,176.14,176.12,3.04]
[1753905241547,4.23952387,176.17,176.11,6.64349078]
[1753905241843,7.51952387,176.17,176.12,3.04]
[1753905242045,4.23952387,176.17,176.13,3.04]
[1753905242244,4.23952387,176.17,176.14,3.04]
[1753905242440,4.23952387,176.17,176.15,3.04]
[1753905242647,4.23952387,176.17,176.16,3.04]
[1753905244652,4.23952387,176.17,176.16,9.68349078]
[1753905244853,4.23952387,176.17,176.16,15.36029078]
[1753905245052,4.23952387,176.17,176.16,9.68349078]
[1753905246548,4.23952387,176.17,176.16,3.04]
[1753905246852,7.51952387,176.17,176.16,110.52]
[1753905247054,4.23952387,176.17,176.16,113.56]
[1753905247253,4.23952387,176.17,176.16,120.20349078]
[1753905247655,4.23952387,176.17,176.16,9.68349078]
[1753905247850,4.23952387,176.17,176.16,120.20349078]
[1753905248046,7.51952387,176.17,176.16,110.52]
[1753905248755,3.28,176.15,176.12,3.04]
[1753905248957,3.28,176.15,176.13,110.52]
[1753905249456,3.28,176.14,176.13,110.52]
[1753905249655,3.28,176.16,176.13,113.56]
[1753905249853,4.23952387,176.17,176.14,3.04]
[1753905250247,0.93952387,176.17,176.16,3.04]
[1753905250450,3.28,176.25,176.16,3.04]
[1753905250652,3.28,176.24,176.2,6.64349078]
[1753905250854,3.28,176.24,176.21,110.52]
[1753905251360,6.64349078,176.3,176.21,110.52]
[1753905251559,3.28,176.22,176.21,110.52]
[1753905251858,3.28,176.26,176.18,110.5]
[1753905252649,3.28,176.26,176.18,117.14349078]
[1753905253351,5.674,176.25,176.19,5.6757]
[1753905253557,3.28,176.23,176.19,5.6757]
[1753905253755,3.28,176.23,176.18,117.14349078]
[1753905253955,3.28,176.28,176.18,117.14349078]
[1753905254153,3.28,176.28,176.18,110.5]
[1753905254363,3.28,176.27,176.18,110.5]
[1753905254558,3.28,176.27,176.19,6.64349078]
[1753905254963,3.28,176.24,176.21,6.64349078]
[1753905255162,3.28,176.23,176.21,6.64349078]
[1753905255765,3.28,176.22,176.18,116.176]
[1753905255966,3.28,176.22,176.19,6.64349078]
[1753905256368,3.28,176.23,176.21,6.64349078]
[1753905256666,6.64349078,176.29,176.19,6.64349078]
[1753905256871,3.28,176.28,176.19,6.64349078]
[1753905257864,3.28,176.28,176.21,6.64349078]
[1753905258363,3.28,176.24,176.21,6.64349078]
[1753905258565,3.28,176.24,176.2,6.64349078]
[1753905258767,5.6743,176.24,176.2,6.64349078]
[1753905258965,6.64349078,176.31,176.2,6.64349078]
[1753905259163,3.28,176.22,176.2,6.64349078]
[1753905259566,3.28,176.28,176.18,117.14349078]
[1753905260169,3.28,176.21,176.18,117.14349078]
[1753905260365,3.28,176.2,176.18,117.14349078]
[1753905260668,5.6755,176.2,176.18,110.5]
[1753905260868,3.28,176.19,176.18,110.5]
[1753905261072,3.28,176.19,176.13,6.64349078]
[1753905261268,3.28,176.19,176.1,12.32199078]
[1753905261470,3.28,176.19,176.11,110.46]
[1753905261675,5.6767,176.17,176.11,116.1383]
[1753905261865,3.28,176.21,176.11,110.46]
[1753905262175,5.6758,176.19,176.12,12.32129078]
[1753905262367,5.6758,176.19,176.11,110.46]
[1753905262368,3.28,176.2,176.16,6.64349078]
[1753905262671,11.3455,176.29,176.17,110.44]
[1753905262871,3.28,176.2,176.17,110.44]
[1753905263574,3.28,176.19,176.17,110.44]
[1753905265971,6.64349078,176.28,176.17,110.44]
[1753905266170,3.28,176.26,176.17,110.44]
[1753905266372,6.64349078,176.28,176.17,110.44]
[1753905266373,3.28,176.24,176.17,110.44]
[1753905266870,5.6746,176.23,176.18,6.64349078]
[1753905267066,5.6746,176.23,176.17,116.1165]
[1753905267067,3.28,176.29,176.2,6.64349078]
[1753905267268,3.28,176.27,176.2,6.64349078]